bitfinex-derivatives/quotes_SOLF0:USTF0_20240904
["timestamp","ask_amount","ask_price","bid_price","bid_amount"]
[1725431955411,10.7099,128.52,128.47,3.8924]
[1725431955604,0.05313778,128.51,128.48,0.05650495]
[1725431956209,0.05313778,128.51,128.48,23.96650495]
[1725431957211,0.05313778,128.51,128.49,3.8916]
[1725431958310,0.05313778,128.51,128.48,3.94860495]
[1725431960706,0.05313778,128.51,128.49,3.8917]
[1725431961811,0.05313778,128.51,128.48,3.94850495]
[1725431962108,0.05313778,128.51,128.48,0.05650495]
[1725431962813,3.94453778,128.51,128.48,0.05650495]
[1725431963715,3.94453778,128.51,128.48,3.94860495]
[1725431965216,3.8919,128.49,128.48,0.05650495]
[1725431968515,3.8925,128.47,128.44,3.8933]
[1725431968722,23.91,128.5,128.44,3.8933]
[1725431969319,3.8924,128.48,128.44,3.8933]
[1725431969616,0.05258313,128.47,128.44,3.8933]
[1725431970422,3.95158047,128.46,128.44,3.8933]
[1725431973222,3.95158047,128.46,128.45,3.8931]
[1725431973419,0.0493971,128.47,128.45,23.91]
[1725431973920,0.0493971,128.47,128.46,3.8925]
[1725431978728,23.9593971,128.47,128.39,3.8948]
[1725431978926,1.3592,128.47,128.38,23.91]
[1725431979128,25.2692,128.47,128.38,23.91]
[1725431979430,0.05393884,128.44,128.38,27.8051]
[1725431979739,3.8939,128.43,128.38,27.8051]
[1725431980925,3.8939,128.43,128.38,3.8951]
[1725431982130,3.894,128.42,128.37,114.4255279]
[1725431982335,0.05224007,128.41,128.37,114.4255279]
[1725431982728,3.94664007,128.41,128.37,110.5301279]
[1725431983234,7.75981978,128.41,128.37,110.5301279]
[1725431984235,0.05224007,128.41,128.35,23.91]
[1725431984432,0.05224007,128.41,128.38,23.91]
[1725431985130,0.05224007,128.41,128.39,3.8947]
[1725431987137,0.05224007,128.41,128.38,3.8951]
[1725431987733,0.05224007,128.41,128.36,3.8956]
[1725431988137,3.8948,128.4,128.36,3.8956]
[1725431988436,0.05224007,128.41,128.35,27.806]
[1725431988633,0.05224007,128.41,128.35,3.896]
[1725431988634,23.96224007,128.41,128.35,3.896]
[1725431988839,4.245,128.4,128.35,3.896]
[1725431989032,4.245,128.4,128.34,3.8962]
[1725431989236,0.05948177,128.38,128.31,23.91]
[1725431989442,0.05568466,128.36,128.31,23.91]
[1725431989648,0.05568466,128.36,128.33,3.8966]
[1725431992737,3.95158466,128.36,128.32,3.8969]
[1725431994330,3.95158466,128.36,128.33,3.8967]
[1725431994835,3.95158466,128.36,128.3,23.91]
[1725431994836,3.95158466,128.36,128.32,3.8969]
[1725431995037,3.8961,128.35,128.32,3.8969]
[1725431997545,0.05568466,128.36,128.31,23.91]
[1725431997838,0.05025725,128.35,128.31,23.91]
[1725431998643,0.05025725,128.35,128.33,3.8965]
[1725432001051,0.05025725,128.35,128.32,3.8969]
[1725432001349,3.94635725,128.35,128.29,23.91]
[1725432001547,3.94635725,128.35,128.31,3.8971]
[1725432001746,3.8965,128.34,128.31,3.8971]
[1725432001951,0.05025725,128.35,128.29,23.91]
[1725432002154,0.05025725,128.35,128.32,3.8969]
[1725432002349,3.94655725,128.35,128.32,3.8969]
[1725432003647,0.05025725,128.35,128.29,23.91]
[1725432004151,3.8966,128.34,128.29,23.91]
[1725432004454,3.8966,128.34,128.28,23.91]
[1725432004755,0.05327514,128.32,128.28,23.91]
[1725432005454,0.05327514,128.32,128.3,3.8974]
[1725432006246,0.05327514,128.32,128.31,3.8973]
[1725432006656,0.05327514,128.32,128.28,23.91]
[1725432007262,0.05327514,128.32,128.31,3.8973]
[1725432008848,0.05327514,128.32,128.28,23.91]
[1725432009053,0.05327514,128.32,128.26,23.91]
[1725432010058,0.05327514,128.32,128.3,3.8975]
[1725432010756,0.05327514,128.32,128.28,9.59]
[1725432010951,0.05327514,128.32,128.31,9.59]
[1725432011759,0.05327514,128.32,128.31,13.4873]
[1725432012061,0.05327514,128.32,128.31,27.8573]
[1725432014356,0.05327514,128.32,128.31,3.8973]
[1725432019655,0.05327514,128.32,128.3,3.8976]
[1725432021862,0.05327514,128.32,128.25,111.67630336]
[1725432021863,3.8975,128.31,128.25,111.67630336]
[1725432022068,0.05372092,128.29,128.25,111.67630336]
[1725432022465,0.05372092,128.29,128.28,3.8982]
[1725432027864,0.05372092,128.29,128.27,3.8984]
[1725432031671,0.05372092,128.29,128.26,3.8987]
[1725432031874,3.95172092,128.29,128.26,3.8987]
[1725432033475,3.8983,128.28,128.25,3.899]
[1725432034777,13.53182092,128.29,128.25,3.899]
[1725432035172,9.63372092,128.29,128.25,3.899]
[1725432035373,12.37052092,128.29,128.25,3.899]
[1725432035580,3.8984,128.28,128.24,13.4793]
[1725432037482,3.8984,128.28,128.25,3.8991]
[1725432038984,13.4786,128.27,128.24,3.8993]
[1725432039983,3.8989,128.26,128.24,3.8993]
[1725432040177,3.8989,128.26,128.21,9.58]
[1725432040178,3.95735344,128.26,128.23,3.8996]
[1725432040391,9.58,128.25,128.16,0.2239]
[1725432040589,0.0588575,128.22,128.18,9.58]
[1725432040796,0.05277337,128.21,128.18,9.58]
[1725432041196,0.05277337,128.21,128.2,3.9005]
[1725432041585,0.05277337,128.21,128.18,9.58]
[1725432042090,0.05277337,128.21,128.17,9.58]
[1725432042691,0.05277337,128.21,128.2,3.9007]
[1725432042895,0.05277337,128.21,128.14,0.2243]
[1725432043199,0.05277337,128.21,128.16,9.58]
[1725432043496,3.9007,128.2,128.18,3.9013]
[1725432043994,0.05277337,128.21,128.18,3.9013]
[1725432044192,3.95337337,128.21,128.18,3.9013]
[1725432044696,9.63277337,128.21,128.17,3.9015]
[1725432044894,0.05542199,128.2,128.07,0.2243]
[1725432045088,0.05177266,128.15,128.13,9.58]
[1725432045293,9.58,128.19,128.16,3.9019]
[1725432045496,13.54083312,128.19,128.16,3.9019]
[1725432046200,3.9013,128.18,128.15,3.9021]
[1725432046591,3.9013,128.18,128.13,9.58]
[1725432046987,13.54073312,128.19,128.16,3.9019]
[1725432047192,9.63963312,128.19,128.13,9.58]
[1725432047498,3.9013,128.18,128.15,3.902]
[1725432049999,13.4813,128.18,128.15,3.902]
[1725432050494,3.96083312,128.19,128.16,3.9018]
[1725432051294,3.96083312,128.19,128.15,3.9021]
[1725432051295,13.54083312,128.19,128.15,3.9021]
[1725432052696,3.9013,128.18,128.15,3.9021]
[1725432053402,13.4813,128.18,128.15,3.9021]
[1725432053805,3.9017,128.17,128.14,3.9024]
[1725432054098,3.95278172,128.17,128.14,3.9024]
[1725432054602,7.89363673,128.16,128.13,3.9026]
[1725432054800,0.05869516,128.16,128.1,9.58]
[1725432055197,3.92126336,128.16,128.1,9.58]
[1725432055398,3.9022,128.15,128.12,3.9029]
[1725432055607,3.98393198,128.14,128.12,3.9029]
[1725432058804,3.98393198,128.14,128.13,3.9028]
[1725432059106,0.05628796,128.15,128.13,3.9028]
[1725432059298,3.85215318,128.14,128.13,3.9028]
[1725432060798,3.85215318,128.14,128.12,3.903]
[1725432061004,3.90277794,128.14,128.12,3.903]
[1725432063206,3.90277794,128.14,128.11,9.58]
[1725432063807,3.90277794,128.14,128.13,3.9028]
[1725432071110,3.90277794,128.14,128.12,3.9031]
[1725432072400,7.80527794,128.14,128.11,3.9033]
[1725432072704,3.90277794,128.14,128.1,9.58]
[1725432073309,3.90277794,128.14,128.12,3.903]
[1725432074411,3.90277794,128.14,128.13,3.9028]
[1725432080303,3.90277794,128.14,128.12,3.9029]
[1725432086409,3.90277794,128.14,128.11,3.9033]
[1725432086410,17.38527794,128.14,128.11,3.9033]
[1725432086715,17.38716046,128.14,128.11,3.9033]
[1725432087418,3.9028,128.13,128.1,3.9036]
[1725432087613,3.95779699,128.13,128.1,3.9036]
[1725432094225,3.9031,128.12,128.1,3.9036]
[1725432094532,13.4831,128.12,128.1,3.9036]
[1725432095323,9.58,128.12,128.1,3.9036]
[1725432097531,10.9018,128.12,128.1,3.9036]
[1725432097731,14.8049,128.12,128.09,3.9039]
[1725432097926,14.85874231,128.12,128.09,3.9039]
[1725432099128,9.58,128.11,128.09,3.9039]
[1725432099327,14.8926,128.11,128.08,3.9042]
[1725432099524,14.94672935,128.11,128.08,3.9042]
[1725432100127,14.94672935,128.11,128.09,3.904]
[1725432100624,11.04322935,128.11,128.09,3.904]
[1725432101027,11.04322935,128.11,128.08,3.9042]
[1725432101621,14.94662935,128.11,128.08,3.9042]
[1725432101926,11.04322935,128.11,128.07,3.9045]
[1725432102127,9.58,128.09,128.01,0.2276]
[1725432102330,0.05420462,128.06,128.01,4.12577132]
[1725432102525,0.05420462,128.06,128.05,3.9053]
[1725432108327,0.05420462,128.06,128.05,13.4853]
[1725432109732,0.05420462,128.06,128.05,3.9053]
[1725432110131,0.05420462,128.06,128.03,9.58]
[1725432110633,0.05420462,128.06,128.04,3.9056]
[1725432110834,0.05264623,128.06,128.04,3.9056]
[1725432116241,13.53764623,128.06,128.04,3.9056]
[1725432117945,9.63264623,128.06,128.04,3.9056]
[1725432119246,13.53764623,128.06,128.04,3.9056]
[1725432120750,13.53764623,128.06,128.03,3.9057]
[1725432122745,13.4855,128.05,127.95,0.229]
[1725432123053,0.0504044,128.01,127.98,9.58]
[1725432124244,0.0504044,128.01,128.0,3.9068]
[1725432125044,3.80934684,128.07,128.04,3.9055]
[1725432125243,17.375,128.09,128.04,3.9055]
[1725432126055,3.9048,128.07,128.05,0.05654839]
[1725432126353,7.77558779,128.07,128.05,0.05654839]
[1725432128752,9.58,128.06,128.05,0.05654839]
[1725432129356,17.35558779,128.07,128.05,0.05654839]
[1725432131554,3.87078779,128.07,128.06,3.905]
[1725432131765,0.05116987,128.08,128.05,0.05654839]
[1725432132155,3.8102299,128.07,128.05,0.05654839]
[1725432132355,0.05116987,128.08,128.06,3.9047]
[1725432132551,3.93211975,128.07,128.05,0.05654839]
[1725432132860,0.05116987,128.08,128.05,9.63654839]
[1725432133055,0.05116987,128.08,128.07,3.9047]
[1725432143257,0.05116987,128.08,128.05,0.05654839]
[1725432143258,9.63116987,128.08,128.05,0.05654839]
[1725432143573,9.58,128.06,128.0,9.58]
[1725432143766,14.9322,128.07,128.03,3.9056]
[1725432144070,11.0274,128.07,128.03,3.9056]
[1725432144275,9.58,128.04,128.02,3.9061]
[1725432144465,3.8092538,128.03,128.02,3.9061]
[1725432144665,3.8092538,128.03,127.98,9.58]
[1725432144963,3.8092538,128.03,128.01,3.9062]
[1725432145374,13.53887372,128.04,127.98,9.58]
[1725432145873,3.85377907,128.03,127.98,9.58]
[1725432146670,3.85377907,128.03,128.01,3.9063]
[1725432147070,3.85377907,128.03,127.99,9.58]
[1725432147271,0.0537093,128.02,127.99,9.58]
[1725432147472,0.0537093,128.02,128.01,3.9065]
[1725432153070,0.0537093,128.02,128.0,3.9066]
[1725432156179,3.9599093,128.02,127.99,3.9069]
[1725432159075,3.9065,128.01,127.99,3.9069]
[1725432159876,3.9068,128.0,127.97,3.9074]
[1725432160082,3.9068,128.0,127.96,100.81314893]
[1725432160379,0.05168447,127.99,127.96,100.81314893]
[1725432161282,9.63168447,127.99,127.88,8.0506]
[1725432161579,0.05423266,127.95,127.91,9.58]
[1725432161885,0.05893117,127.94,127.93,3.9089]
[1725432162183,0.05457397,127.95,127.91,9.58]
[1725432164376,0.05457397,127.95,127.94,3.9086]
[1725432166082,3.88751424,127.95,127.94,3.9086]
[1725432168584,0.05457397,127.95,127.93,0.0002]
[1725432168883,3.99900815,127.95,127.93,0.0002]
[1725432169085,0.05457397,127.95,127.94,9.58]
[1725432169278,0.05457397,127.95,127.94,13.4886]
[1725432170585,1.4335,128.0,127.98,3.9073]
[1725432171291,3.97453243,127.99,127.98,3.9073]
[1725432172582,3.97453243,127.99,127.97,0.05979739]
[1725432172583,3.97453243,127.99,127.97,3.96739739]
[1725432172779,5.39218622,128.0,127.97,3.96739739]
[1725432172981,3.91433593,127.99,127.97,3.96739739]
[1725432173591,0.05188622,128.0,127.98,9.58]
[1725432174194,3.92917578,128.0,127.98,9.58]
[1725432174391,0.05188622,128.0,127.99,13.4871]
[1725432174596,2.717,128.06,127.99,9.58]
[1725432174896,2.717,128.06,128.01,9.58]
[1725432175296,6.6221,128.06,128.01,9.58]
[1725432175703,0.05289136,128.05,128.02,0.05365478]
[1725432175893,0.05289136,128.05,128.03,3.9057]
[1725432178089,3.95839136,128.05,128.02,3.95975478]
[1725432178291,9.63289136,128.05,128.02,0.05365478]
[1725432179092,3.9058,128.04,128.02,0.05365478]
[1725432182296,0.05289136,128.05,128.02,0.05365478]
[1725432183699,0.05289136,128.05,128.03,3.9057]
[1725432186404,0.05289136,128.05,128.02,0.05365478]
[1725432187597,0.05289136,128.05,128.03,3.9057]
[1725432190904,0.05289136,128.05,128.04,3.9056]
[1725432191113,9.63289136,128.05,128.02,0.05365478]
[1725432191408,9.58,128.03,128.02,0.05365478]
[1725432193308,9.58,128.03,127.9,7.8195]
[1725432193615,9.58,128.02,127.94,11.99030532]
[1725432193814,9.58,128.02,127.99,3.907]
[1725432193815,3.949223,128.01,127.99,3.907]
[1725432194107,3.949223,128.01,127.9,7.9416]
[1725432194303,9.6369987,127.98,127.96,3.960035]
[1725432194502,9.6369987,127.98,127.96,0.052035]
[1725432196112,24.0869987,127.98,127.96,0.052035]
[1725432196312,3.9077,127.97,127.96,0.052035]
[1725432197712,0.0569987,127.98,127.96,0.052035]
[1725432197713,24.0869987,127.98,127.96,0.052035]
[1725432198422,27.9945987,127.98,127.96,0.052035]
[1725432198623,24.0869987,127.98,127.96,0.052035]
[1725432199318,3.9077,127.97,127.96,0.052035]
[1725432201625,3.9077,127.97,127.93,3.9089]
[1725432202822,24.03,127.96,127.93,0.0002]
[1725432203023,1.4233,127.95,127.93,0.0002]
[1725432203223,3.92215237,127.94,127.93,0.0002]
[1725432205019,3.92215237,127.94,127.93,3.9091]
[1725432205233,0.05022027,127.95,127.93,0.0002]
[1725432205723,0.05022027,127.95,127.94,3.9086]
[1725432206527,0.05022027,127.95,127.93,3.9091]
[1725432207734,0.05022027,127.95,127.94,3.9086]
[1725432210530,0.05022027,127.95,127.93,3.9088]
[1725432212232,0.05022027,127.95,127.94,3.9086]
[1725432213949,0.05022027,127.95,127.94,27.9386]
[1725432214234,7.75766632,128.01,127.98,3.9073]
[1725432214433,3.9065,128.01,127.98,3.9073]
[1725432214639,3.9137747,128.0,127.98,3.9073]
[1725432215230,0.05607589,128.0,127.99,3.9071]
[1725432217834,11.60926903,128.08,128.02,3.906]
[1725432218040,35.63926903,128.08,128.0,24.03]
[1725432218340,5.2681,128.06,128.0,24.03]
[1725432218542,5.2681,128.06,128.02,3.906]
[1725432218748,1.3373,128.05,128.0,24.03]
[1725432219034,0.05763959,128.04,128.03,3.9059]
[1725432219241,0.05763959,128.04,128.0,24.03]
[1725432219242,0.05191426,128.05,128.02,0.05568993]
[1725432220133,0.05191426,128.05,128.03,3.9059]
[1725432220539,0.05191426,128.05,128.02,0.05568993]
[1725432221540,0.05191426,128.05,128.04,3.9056]
[1725432236753,4.1669,128.11,128.04,9.6]
[1725432236946,4.1669,128.11,128.06,9.6]
[1725432237144,3.86111095,128.1,128.06,9.6]
[1725432237345,3.86111095,128.1,128.08,3.9041]
[1725432237854,9.65933601,128.1,128.08,0.05128396]
[1725432238152,13.57968114,128.1,128.08,0.05128396]
[1725432238653,17.48358114,128.1,128.08,0.05128396]
[1725432240847,3.904,128.09,128.08,0.05128396]
[1725432242650,17.48348114,128.1,128.08,0.05128396]
[1725432242855,3.97968114,128.1,128.09,3.904]
[1725432243046,13.57968114,128.1,128.08,0.05128396]
[1725432243460,13.57968114,128.1,128.08,3.95548396]
[1725432244354,17.48348114,128.1,128.08,3.95548396]
[1725432244552,17.48348114,128.1,128.08,0.05128396]
[1725432245652,17.48348114,128.1,128.08,3.95558396]
[1725432249062,13.504,128.09,128.08,0.05128396]
[1725432249356,9.6,128.09,128.02,13.50121007]
[1725432249559,3.9044,128.08,128.06,3.9049]
[1725432250058,9.6,128.09,128.06,3.9049]
[1725432250359,13.55722333,128.09,128.06,3.95540171]
[1725432250858,9.65302333,128.09,128.06,0.05050171]
[1725432251053,9.6,128.08,128.06,0.05050171]
[1725432251952,13.5046,128.08,128.06,0.05050171]
[1725432252146,9.6,128.08,128.06,0.05050171]
[1725432253457,3.9047,128.07,128.06,0.05050171]
[1725432263165,3.9047,128.07,127.99,3.907]
[1725432263166,3.9064,128.02,127.99,3.907]
[1725432263372,9.6,128.03,127.96,9.6]
[1725432263566,2.7887,128.06,127.96,9.6]
[1725432263567,9.6,128.02,127.96,9.6]
[1725432263769,3.9066,128.01,127.97,3.9075]
[1725432264261,3.96599031,128.0,127.98,0.0533823]
[1725432264668,13.59790033,127.99,127.98,0.0533823]
[1725432264869,7.90500033,127.99,127.98,0.0533823]
[1725432265068,0.05919031,128.0,127.98,0.0533823]
[1725432266171,0.05919031,128.0,127.98,3.9605823]
[1725432268269,0.05919031,128.0,127.99,3.9071]
[1725432271378,0.05919031,128.0,127.98,3.9605823]
[1725432272079,3.81504,127.99,127.98,0.0533823]
[1725432272274,0.05919031,128.0,127.98,0.0533823]
[1725432272768,0.05919031,128.0,127.98,3.9607823]
[1725432273578,0.05919031,128.0,127.98,0.0533823]
[1725432273973,0.05919031,128.0,127.98,3.9605823]
[1725432276084,0.05919031,128.0,127.99,3.9071]
[1725432276382,0.05919031,128.0,127.98,0.0533823]
[1725432276887,0.05919031,128.0,127.98,3.9605823]
[1725432282587,0.05919031,128.0,127.99,3.9071]
[1725432285586,0.05919031,128.0,127.98,3.9605823]
[1725432288095,0.05919031,128.0,127.99,3.9071]
[1725432289690,0.05919031,128.0,127.98,3.9605823]
[1725432291598,0.05919031,128.0,127.99,3.9071]
[1725432296310,11.67221342,128.06,128.03,3.9057]
[1725432296507,3.87721342,128.06,128.03,3.9057]
[1725432296715,4.0954,128.1,128.03,9.6]
[1725432296908,9.6,128.09,128.06,3.9048]
[1725432297306,9.65817387,128.09,128.06,3.95832715]
[1725432297513,13.56247387,128.09,128.06,3.95832715]
[1725432297816,13.56247387,128.09,128.06,0.05352715]
[1725432298400,0.05817387,128.09,128.06,0.05352715]
[1725432298808,0.05817387,128.09,128.08,3.9043]
[1725432299815,0.05817387,128.09,128.07,3.9045]
[1725432300307,0.05817387,128.09,128.06,0.05352715]
[1725432300910,0.05817387,128.09,128.06,3.95832715]
[1725432301305,0.05817387,128.09,128.06,0.05352715]
[1725432301510,0.05817387,128.09,128.06,9.65352715]
[1725432301912,0.05817387,128.09,128.07,3.9045]
[1725432302909,0.05817387,128.09,128.06,3.95832715]
[1725432304114,0.05817387,128.09,128.07,3.9045]
[1725432304413,227.0,128.21,128.08,9.6]
[1725432304614,9.6,128.2,128.13,9.6]
[1725432304815,3.901,128.19,128.14,9.6]
[1725432305307,5.20849972,128.18,128.09,0.1218]
[1725432305508,0.05484979,128.15,128.12,9.65914217]
[1725432305711,0.05484979,128.15,128.14,3.9023]
[1725432306708,3.91526942,128.2,128.14,23.99]
[1725432306914,4.3343,128.23,128.14,23.99]
[1725432306915,3.9004,128.22,128.14,23.99]
[1725432307112,1.3069399,128.21,128.14,23.99]
[1725432307316,23.99,128.22,128.14,23.99]
[1725432307513,1.30702848,128.21,128.14,23.99]
[1725432307712,0.05553831,128.19,128.16,0.05887567]
[1725432308318,0.05553831,128.19,128.17,3.9014]
[1725432311111,0.05553831,128.19,128.18,3.9013]
[1725432312515,227.0,128.26,128.23,3.8997]
[1725432312720,3.91533616,128.25,128.23,3.8997]
[1725432313014,26.6708,128.3,128.23,3.8997]
[1725432313222,1.30597162,128.29,128.25,3.8991]
[1725432313414,2.6808,128.3,128.23,23.99]
[1725432313610,0.05636014,128.28,128.25,0.05458988]
[1725432313813,0.05636014,128.28,128.27,3.8986]
[1725432314919,0.05636014,128.28,128.25,0.05458988]
[1725432316320,0.05636014,128.28,128.27,3.8986]
[1725432319422,3.896,128.36,128.32,3.8969]
[1725432319614,25.4316,128.37,128.32,3.8969]
[1725432319919,29.41664143,128.37,128.27,23.99]
[1725432320119,3.8962,128.35,128.31,3.8972]
[1725432320322,3.8962,128.35,128.27,23.99]
[1725432320519,0.0498338,128.32,128.3,0.05336647]
[1725432320718,0.0498338,128.32,128.31,3.8973]
[1725432324821,0.0498338,128.32,128.3,3.95086647]
[1725432327226,0.0498338,128.32,128.31,3.8973]
[1725432327825,0.0498338,128.32,128.3,3.95086647]
[1725432328632,7.7867,128.45,128.3,24.04336647]
[1725432328931,2.6712,128.42,128.33,23.99]
[1725432329128,6.64346518,128.42,128.35,23.99]
[1725432329429,2.6712,128.42,128.39,3.8949]
[1725432329632,6.53743415,128.42,128.39,3.8949]
[1725432329826,2.72796923,128.42,128.4,3.8945]
[1725432330122,3.83855694,128.41,128.4,3.8945]
[1725432330327,2.72796923,128.42,128.4,3.8946]
[1725432330626,6.71348828,128.42,128.4,3.8946]
[1725432330830,6.71348828,128.42,128.39,3.94495638]
[1725432331028,0.05676923,128.42,128.39,24.04015638]
[1725432331426,0.05676923,128.42,128.4,3.8946]
[1725432332030,0.05676923,128.42,128.41,3.8943]
[1725432332439,0.05676923,128.42,128.39,24.04015638]
[1725432332731,0.05676923,128.42,128.39,0.05015638]
[1725432332932,2.85846923,128.42,128.34,23.99]
[1725432333132,3.8944,128.41,128.38,3.8952]
[1725432333525,23.99,128.39,128.28,102.7213935]
[1725432333728,23.99,128.37,128.26,3.9062876]
[1725432334033,0.05564895,128.33,128.3,3.9520354]
[1725432334234,0.05360996,128.33,128.3,3.95357013]
[1725432336934,0.05360996,128.33,128.3,0.05607013]
[1725432337435,1.40090996,128.33,128.3,0.05607013]
[1725432338135,5.29770996,128.33,128.3,0.05607013]
[1725432338736,3.8971,128.32,128.3,0.05607013]
[1725432339238,1.40090996,128.33,128.3,0.05607013]
[1725432339431,5.29780996,128.33,128.3,0.05607013]
[1725432341040,5.29780996,128.33,128.3,3.95367013]
[1725432342838,1.40090996,128.33,128.3,0.05607013]
[1725432343741,5.29770996,128.33,128.3,3.95357013]
[1725432345636,3.8971,128.32,128.3,0.05607013]
[1725432346338,5.29780996,128.33,128.3,3.95367013]
[1725432346539,1.40090996,128.33,128.3,3.95367013]
[1725432347244,5.29770996,128.33,128.3,3.95367013]
[1725432349435,1.40090996,128.33,128.31,3.8973]
[1725432349837,1.40090996,128.33,128.3,0.05607013]
[1725432350736,1.40090996,128.33,128.31,3.8973]
[1725432353343,5.29760996,128.33,128.3,3.95357013]
[1725432353941,1.40090996,128.33,128.3,0.05607013]
[1725432354539,1.40090996,128.33,128.31,3.8972]
[1725432358261,3.8972,128.32,128.3,0.05607013]
[1725432358462,1.40090996,128.33,128.3,0.05607013]
[1725432359564,3.8971,128.32,128.3,0.05607013]
[1725432360655,23.99,128.32,128.23,96.10705257]
[1725432360855,1.40090996,128.33,128.22,23.99]
[1725432360856,23.99,128.3,128.22,23.99]
[1725432361056,3.8992,128.26,128.22,27.8899]
[1725432361562,7.72490126,128.25,128.21,3.9002]
[1725432361857,7.72490126,128.25,128.23,0.05949955]
[1725432361858,3.87556841,128.25,128.23,0.05949955]
[1725432362257,3.8995,128.24,128.23,0.05949955]
[1725432362453,3.8995,128.24,128.15,1.4596]
[1725432362454,3.87556841,128.25,128.15,1.4596]
[1725432362661,3.82560126,128.25,128.17,23.99]
[1725432362859,25.3623,128.27,128.17,23.99]
[1725432363162,3.8995,128.24,128.19,3.9008]
[1725432363464,3.86731524,128.23,128.19,3.9008]
[1725432363768,0.05434358,128.22,128.2,0.05214518]
[1725432364064,3.88545988,128.22,128.2,0.05214518]
[1725432365556,7.78565988,128.22,128.2,0.05214518]
[1725432366659,3.9004,128.21,128.2,0.05214518]
[1725432369358,5.287,128.21,128.2,0.05214518]
[1725432370963,3.9012,128.19,128.15,23.99]
[1725432371564,3.9012,128.19,128.16,3.9017]
[1725432371762,3.8311163,128.22,128.17,23.99]
[1725432371969,0.05438145,128.21,128.18,0.05055938]
[1725432372169,3.96091277,128.21,128.18,3.95165938]
[1725432373164,0.05438145,128.21,128.18,3.95165938]
[1725432374768,0.05438145,128.21,128.18,0.05055938]
[1725432375274,0.05438145,128.21,128.19,3.9007]
[1725432375766,0.05438145,128.21,128.2,3.9007]
[1725432378679,0.05438145,128.21,128.19,3.901]
[1725432378873,0.05438145,128.21,128.18,0.05055938]
[1725432379171,3.95488145,128.21,128.18,3.95185938]
[1725432380167,3.9007,128.2,128.18,3.95185938]
[1725432380367,3.9007,128.2,128.18,0.05055938]
[1725432380972,3.95488145,128.21,128.18,0.05055938]
[1725432381373,3.95488145,128.21,128.18,3.95175938]
[1725432383866,3.9007,128.2,128.18,0.05055938]
[1725432384072,0.05438145,128.21,128.18,0.05055938]
[1725432384579,3.901,128.19,128.18,0.05055938]
[1725432390284,5.2255,128.2,128.18,0.05055938]
[1725432391176,0.05438145,128.21,128.18,0.05055938]
[1725432391377,0.05438145,128.21,128.19,23.99]
[1725432391891,0.05438145,128.21,128.2,3.9007]
[1725432394282,0.05438145,128.21,128.19,3.9008]
[1725432395191,0.05438145,128.21,128.2,3.9007]
[1725432399787,0.05438145,128.21,128.2,27.8907]
[1725432400884,0.05438145,128.21,128.2,3.9007]
[1725432403092,0.05438145,128.21,128.2,27.8907]
[1725432404489,2.7398,128.27,128.25,3.8991]
[1725432404689,23.99,128.3,128.25,3.8991]
[1725432404988,10.603,128.31,128.25,23.99]
[1725432405592,3.95755026,128.29,128.27,0.05887485]
[1725432406393,0.05945026,128.29,128.27,3.95737485]
[1725432410402,3.95745026,128.29,128.27,3.95737485]
[1725432411097,0.05945026,128.29,128.27,0.05887485]
[1725432411600,0.05945026,128.29,128.27,3.95727485]
[1725432412999,3.8983,128.28,128.27,0.05887485]
[1725432414507,3.899,128.26,128.23,3.8997]
[1725432414697,3.84980789,128.25,128.23,3.8997]
[1725432414995,23.99,128.27,128.19,23.99]
[1725432415203,27.91896428,128.27,128.18,23.99]
[1725432415702,0.05108254,128.24,128.21,0.05781247]
[1725432416098,0.05108254,128.24,128.22,3.9]
[1725432416298,0.05108254,128.24,128.21,0.05781247]
[1725432416505,0.05108254,128.24,128.22,23.99]
[1725432416805,0.05108254,128.24,128.23,3.8998]
[1725432421402,0.05108254,128.24,128.21,0.05781247]
[1725432421608,0.05108254,128.24,128.21,24.04781247]
[1725432421909,0.05108254,128.24,128.23,23.99]
[1725432422310,1.4191,128.3,128.23,23.99]
[1725432422503,1.4191,128.3,128.25,23.99]
[1725432422702,1.4191,128.3,128.27,3.8985]
[1725432423001,1.4191,128.3,128.25,23.99]